[Event "Late-Titled-Tuesday-Blitz-February-20-2024"]
[Site "Chess.com"]
[Date "2024.02.20"]
[Round "6"]
[White "HamedWafa4"]
[Black "MusicCityMaster"]
[Result "1/2-1/2"]
[WhiteElo "2730"]
[BlackElo "2555"]
[TimeControl "180+1"]
[EndTime "15:09:33 PST"]
[Termination "Game drawn by repetition"]

1. d4 {[%clk 0:03:00.9]} 1... Nf6 {[%clk 0:02:59.5]} 2. Nc3 {[%clk 0:03:01]}
2... d5 {[%clk 0:02:58.7]} 3. Bf4 {[%clk 0:03:00.9]} 3... c6 {[%clk 0:02:59.4]}
4. e3 {[%clk 0:03:00.9]} 4... Bf5 {[%clk 0:02:57]} 5. Nf3 {[%clk 0:03:00.7]}
5... e6 {[%clk 0:02:54.8]} 6. Ne5 {[%clk 0:02:58.6]} 6... Nbd7 {[%clk
0:02:54.1]} 7. g4 {[%clk 0:02:56]} 7... Be4 {[%clk 0:02:49.8]} 8. f3 {[%clk
0:02:54.1]} 8... Bg6 {[%clk 0:02:48.6]} 9. h4 {[%clk 0:02:54.3]} 9... h6 {[%clk
0:02:25.7]} 10. Nxg6 {[%clk 0:02:53.1]} 10... fxg6 {[%clk 0:02:26.6]} 11. Bd3
{[%clk 0:02:50.9]} 11... Kf7 {[%clk 0:02:26]} 12. h5 {[%clk 0:02:48]} 12... g5
{[%clk 0:02:21.2]} 13. Bg3 {[%clk 0:02:45.9]} 13... Bb4 {[%clk 0:02:20.3]} 14.
a3 {[%clk 0:02:44]} 14... Bxc3+ {[%clk 0:02:19]} 15. bxc3 {[%clk 0:02:44.6]}
15... Rf8 {[%clk 0:02:16.3]} 16. O-O {[%clk 0:02:44.3]} 16... Kg8 {[%clk
0:02:14.7]} 17. Qd2 {[%clk 0:02:39.9]} 17... Qe7 {[%clk 0:02:13.7]} 18. Rae1
{[%clk 0:02:39.5]} 18... e5 {[%clk 0:02:12.9]} 19. Qg2 {[%clk 0:02:36.8]} 19...
e4 {[%clk 0:02:03.8]} 20. fxe4 {[%clk 0:02:34.1]} 20... dxe4 {[%clk 0:02:04.2]}
21. Bc4+ {[%clk 0:02:33.7]} 21... Kh8 {[%clk 0:02:04.2]} 22. Bh2 {[%clk
0:02:29.4]} 22... Nb6 {[%clk 0:02:02.5]} 23. Bb3 {[%clk 0:02:27.9]} 23... Nbd5
{[%clk 0:02:01.7]} 24. c4 {[%clk 0:02:25.8]} 24... Nb6 {[%clk 0:01:56.9]} 25.
Be5 {[%clk 0:02:23.2]} 25... Nbd7 {[%clk 0:01:55.9]} 26. Bh2 {[%clk 0:02:20.1]}
26... Qe6 {[%clk 0:01:50.9]} 27. c5 {[%clk 0:02:08.4]} 27... Qxg4 {[%clk
0:01:49.2]} 28. Qxg4 {[%clk 0:02:06.3]} 28... Nxg4 {[%clk 0:01:49.5]} 29. Bd6
{[%clk 0:02:05.8]} 29... Rxf1+ {[%clk 0:01:30.5]} 30. Rxf1 {[%clk 0:01:55.1]}
30... Ndf6 {[%clk 0:01:29.3]} 31. Re1 {[%clk 0:01:43.9]} 31... Nxh5 {[%clk
0:01:25.7]} 32. Be6 {[%clk 0:01:36.5]} 32... Nhf6 {[%clk 0:01:12.5]} 33. Kf1
{[%clk 0:01:32.9]} 33... Re8 {[%clk 0:01:11.3]} 34. Bf5 {[%clk 0:01:31.5]} 34...
h5 {[%clk 0:00:59.2]} 35. Ke2 {[%clk 0:01:28.4]} 35... Nh6 {[%clk 0:00:52.2]}
36. Bg6 {[%clk 0:01:26.3]} 36... Re6 {[%clk 0:00:49.1]} 37. c4 {[%clk
0:01:09.6]} 37... b6 {[%clk 0:00:45.1]} 38. cxb6 {[%clk 0:00:58.1]} 38... axb6
{[%clk 0:00:44.2]} 39. c5 {[%clk 0:00:50.9]} 39... bxc5 {[%clk 0:00:39]} 40.
dxc5 {[%clk 0:00:50.9]} 40... h4 {[%clk 0:00:30.7]} 41. a4 {[%clk 0:00:49.9]}
41... Nd5 {[%clk 0:00:30.3]} 42. Bh5 {[%clk 0:00:47.6]} 42... Nc3+ {[%clk
0:00:30.2]} 43. Kd2 {[%clk 0:00:46.8]} 43... Nxa4 {[%clk 0:00:30.3]} 44. Rg1
{[%clk 0:00:43.8]} 44... Nf5 {[%clk 0:00:21.4]} 45. Bf7 {[%clk 0:00:33.6]} 45...
Rf6 {[%clk 0:00:19.6]} 46. Bb3 {[%clk 0:00:31.6]} 46... Nxd6 {[%clk 0:00:18.5]}
47. Bxa4 {[%clk 0:00:30.2]} 47... Nf5 {[%clk 0:00:17.7]} 48. Rxg5 {[%clk
0:00:29.8]} 48... Kh7 {[%clk 0:00:16.1]} 49. Bd1 {[%clk 0:00:25.6]} 49... Kh6
{[%clk 0:00:14.8]} 50. Rh5+ {[%clk 0:00:24.1]} 50... Kg6 {[%clk 0:00:15.3]} 51.
Bg4 {[%clk 0:00:22.8]} 51... Nh6 {[%clk 0:00:14.2]} 52. Be2 {[%clk 0:00:20.6]}
52... Nf5 {[%clk 0:00:13.7]} 53. Bg4 {[%clk 0:00:20.4]} 53... Nh6 {[%clk
0:00:12.6]} 54. Be2 {[%clk 0:00:20.7]} 54... Rf5 {[%clk 0:00:13.1]} 55. Rxh4
{[%clk 0:00:20.7]} 55... Rd5+ {[%clk 0:00:13.2]} 56. Ke1 {[%clk 0:00:20.2]}
56... Rxc5 {[%clk 0:00:13.3]} 57. Rxe4 {[%clk 0:00:20.5]} 57... Nf5 {[%clk
0:00:13.4]} 58. Bd3 {[%clk 0:00:19.3]} 58... Kf6 {[%clk 0:00:12.6]} 59. Rf4
{[%clk 0:00:19.4]} 59... g5 {[%clk 0:00:12.1]} 60. Rf1 {[%clk 0:00:18.7]} 60...
Ke6 {[%clk 0:00:11.8]} 61. Kd2 {[%clk 0:00:18.5]} 61... Re5 {[%clk 0:00:12]} 62.
e4 {[%clk 0:00:18.2]} 62... Nd4 {[%clk 0:00:11.2]} 63. Ke3 {[%clk 0:00:17.6]}
63... c5 {[%clk 0:00:11.4]} 64. Rg1 {[%clk 0:00:17.1]} 64... Kf6 {[%clk
0:00:09.3]} 65. Rh1 {[%clk 0:00:17.2]} 65... Kg6 {[%clk 0:00:09.5]} 66. Ra1
{[%clk 0:00:15.8]} 66... g4 {[%clk 0:00:09.5]} 67. Rg1 {[%clk 0:00:15.9]} 67...
Kg5 {[%clk 0:00:09.8]} 68. Rh1 {[%clk 0:00:16]} 68... Re7 {[%clk 0:00:09.1]} 69.
Rh8 {[%clk 0:00:14.9]} 69... Nf5+ {[%clk 0:00:09.2]} 70. Kf2 {[%clk 0:00:14.2]}
70... Nd6 {[%clk 0:00:09.6]} 71. Rg8+ {[%clk 0:00:14]} 71... Kf4 {[%clk
0:00:10.2]} 72. Rf8+ {[%clk 0:00:14.3]} 72... Ke5 {[%clk 0:00:10.6]} 73. Ke3
{[%clk 0:00:14.8]} 73... c4 {[%clk 0:00:10.3]} 74. Bc2 {[%clk 0:00:14.8]} 74...
Rg7 {[%clk 0:00:08.9]} 75. Ra8 {[%clk 0:00:11.9]} 75... g3 {[%clk 0:00:09.1]}
76. Ra5+ {[%clk 0:00:12.5]} 76... Ke6 {[%clk 0:00:09.3]} 77. Ra1 {[%clk
0:00:09.8]} 77... g2 {[%clk 0:00:09.7]} 78. Rg1 {[%clk 0:00:10.4]} 78... Ke5
{[%clk 0:00:10.2]} 79. Bd1 {[%clk 0:00:09.5]} 79... Nxe4 {[%clk 0:00:08.7]} 80.
Bf3 {[%clk 0:00:10.1]} 80... Nd6 {[%clk 0:00:06.7]} 81. Bxg2 {[%clk 0:00:09.8]}
81... Nf5+ {[%clk 0:00:06.1]} 82. Kf2 {[%clk 0:00:10]} 82... Kf4 {[%clk
0:00:05.8]} 83. Re1 {[%clk 0:00:07.2]} 83... c3 {[%clk 0:00:04.8]} 84. Re4+
{[%clk 0:00:07.3]} 84... Kg5 {[%clk 0:00:05.3]} 85. Rc4 {[%clk 0:00:07.8]} 85...
Rf7 {[%clk 0:00:05.3]} 86. Rxc3 {[%clk 0:00:07.1]} 86... Nh4+ {[%clk 0:00:04.4]}
87. Kg3 {[%clk 0:00:07.3]} 87... Nxg2 {[%clk 0:00:03.8]} 88. Kxg2 {[%clk
0:00:07.7]} 88... Rf4 {[%clk 0:00:04.1]} 89. Kg3 {[%clk 0:00:07.9]} 89... Rg4+
{[%clk 0:00:04.3]} 90. Kf3 {[%clk 0:00:08.6]} 90... Rf4+ {[%clk 0:00:04.8]} 91.
Ke3 {[%clk 0:00:09.3]} 91... Rb4 {[%clk 0:00:04.5]} 92. Rc5+ {[%clk 0:00:09.6]}
92... Kf6 {[%clk 0:00:04.9]} 93. Rc8 {[%clk 0:00:10.5]} 93... Ke6 {[%clk
0:00:05.1]} 94. Rc6+ {[%clk 0:00:10.5]} 94... Kd5 {[%clk 0:00:05.5]} 95. Rh6
{[%clk 0:00:10.8]} 95... Re4+ {[%clk 0:00:05.8]} 96. Kd3 {[%clk 0:00:11.3]}
96... Ra4 {[%clk 0:00:06.7]} 97. Rh5+ {[%clk 0:00:11.1]} 97... Ke6 {[%clk
0:00:07.4]} 98. Rh6+ {[%clk 0:00:11.7]} 98... Kf5 {[%clk 0:00:07.8]} 99. Rh5+
{[%clk 0:00:12.3]} 99... Kf6 {[%clk 0:00:08.3]} 100. Rc5 {[%clk 0:00:12.5]}
100... Ke6 {[%clk 0:00:08.1]} 101. Rc6+ {[%clk 0:00:12.7]} 101... Kd5 {[%clk
0:00:07.8]} 102. Rh6 {[%clk 0:00:13.3]} 102... Ra3+ {[%clk 0:00:08]} 103. Kc2
{[%clk 0:00:12.9]} 103... Ke5 {[%clk 0:00:08.6]} 104. Rh5+ {[%clk 0:00:13.3]}
104... Kf4 {[%clk 0:00:08.6]} 105. Rh8 {[%clk 0:00:13.7]} 105... Ke4 {[%clk
0:00:08.6]} 106. Rh4+ {[%clk 0:00:13.7]} 106... Ke5 {[%clk 0:00:08.7]} 107. Rh1
{[%clk 0:00:13.6]} 107... Rg3 {[%clk 0:00:07.8]} 108. Re1+ {[%clk 0:00:13.1]}
108... Kd4 {[%clk 0:00:06.3]} 109. Rd1+ {[%clk 0:00:13.4]} 109... Kc4 {[%clk
0:00:06]} 110. Rd8 {[%clk 0:00:14.3]} 110... Rg2+ {[%clk 0:00:05.9]} 111. Kd1
{[%clk 0:00:13.4]} 111... Kc3 {[%clk 0:00:06.1]} 112. Rc8+ {[%clk 0:00:13.9]}
112... Kd3 {[%clk 0:00:06.4]} 113. Rd8+ {[%clk 0:00:14.6]} 113... Kc3 {[%clk
0:00:06.4]} 114. Ke1 {[%clk 0:00:15.1]} 114... Rh2 {[%clk 0:00:05.9]} 115. Kf1
{[%clk 0:00:15.2]} 115... Ra2 {[%clk 0:00:05.8]} 116. Ke1 {[%clk 0:00:15.3]}
116... Rb2 {[%clk 0:00:05.7]} 117. Rc8+ {[%clk 0:00:15.4]} 117... Kd3 {[%clk
0:00:05.9]} 118. Rd8+ {[%clk 0:00:15.9]} 118... Ke3 {[%clk 0:00:06.3]} 119. Re8+
{[%clk 0:00:16.3]} 119... Kd3 {[%clk 0:00:06.8]} 120. Kf1 {[%clk 0:00:16.8]}
120... Ra2 {[%clk 0:00:06.6]} 121. Rd8+ {[%clk 0:00:16.6]} 121... Ke3 {[%clk
0:00:07]} 122. Re8+ {[%clk 0:00:17.3]} 122... Kd3 {[%clk 0:00:07.6]} 123. Kg1
{[%clk 0:00:18]} 123... Kc3 {[%clk 0:00:07.7]} 124. Kh1 {[%clk 0:00:18.4]}
124... Kd3 {[%clk 0:00:08.2]} 125. Kg1 {[%clk 0:00:19]} 125... Kc3 {[%clk
0:00:08.7]} 126. Re3+ {[%clk 0:00:19]} 126... Kd4 {[%clk 0:00:07.8]} 127. Rh3
{[%clk 0:00:19]} 127... Ke4 {[%clk 0:00:08.2]} 128. Rh4+ {[%clk 0:00:19.3]}
128... Kf3 {[%clk 0:00:08.3]} 129. Rh8 {[%clk 0:00:19.3]} 129... Ra1+ {[%clk
0:00:08.5]} 130. Kh2 {[%clk 0:00:19.7]} 130... Ra2+ {[%clk 0:00:09.4]} 131. Kg1
{[%clk 0:00:19.8]} 131... Ra1+ {[%clk 0:00:09.5]} 132. Kh2 {[%clk 0:00:20.3]}
132... Ra2+ {[%clk 0:00:10.3]} 133. Kh1 {[%clk 0:00:20.3]} 133... Ra1+ {[%clk
0:00:10.4]} 134. Kh2 {[%clk 0:00:20.7]} 1/2-1/2

[Event "Late-Titled-Tuesday-Blitz-February-20-2024"]
[Site "Chess.com"]
[Date "2024.02.20"]
[Round "7"]
[White "emeli_chess"]
[Black "giovannibrandao7"]
[Result "1-0"]
[WhiteElo "2415"]
[BlackElo "2240"]
[TimeControl "180+1"]
[EndTime "15:12:04 PST"]
[Termination "emeli_chess won by resignation"]

1. d4 {[%clk 0:03:00.9]} 1... Nf6 {[%clk 0:02:59.9]} 2. c4 {[%clk 0:03:01]} 2...
e6 {[%clk 0:03:00.1]} 3. Nc3 {[%clk 0:03:01.2]} 3... d5 {[%clk 0:02:58.1]} 4.
cxd5 {[%clk 0:03:01.2]} 4... exd5 {[%clk 0:02:59]} 5. Bg5 {[%clk 0:03:01.1]}
5... Be7 {[%clk 0:02:58.8]} 6. e3 {[%clk 0:03:00.9]} 6... c6 {[%clk 0:02:59.3]}
7. Bd3 {[%clk 0:03:00.9]} 7... O-O {[%clk 0:02:59]} 8. Qc2 {[%clk 0:03:00]} 8...
Nbd7 {[%clk 0:02:58]} 9. Nf3 {[%clk 0:02:59.5]} 9... h6 {[%clk 0:02:57.6]} 10.
Bh4 {[%clk 0:02:59.2]} 10... Re8 {[%clk 0:02:43.6]} 11. O-O {[%clk 0:02:58.6]}
11... Ne4 {[%clk 0:02:20.2]} 12. Bxe4 {[%clk 0:02:55.9]} 12... dxe4 {[%clk
0:02:10.6]} 13. Qxe4 {[%clk 0:02:48.8]} 13... f5 {[%clk 0:01:54.5]} 14. Qe6+
{[%clk 0:02:39.5]} 14... Kf8 {[%clk 0:01:47.3]} 1-0

[Event "Late-Titled-Tuesday-Blitz-February-20-2024"]
[Site "Chess.com"]
[Date "2024.02.20"]
[Round "7"]
[White "giomar27"]
[Black "Ready4abattle"]
[Result "0-1"]
[WhiteElo "2444"]
[BlackElo "2289"]
[TimeControl "180+1"]
[EndTime "15:13:21 PST"]
[Termination "Ready4abattle won by resignation"]

1. f3 {[%clk 0:03:00.9]} 1... e5 {[%clk 0:02:55]} 2. Nh3 {[%clk 0:03:00.5]} 2...
d5 {[%clk 0:02:53.5]} 3. Nf2 {[%clk 0:03:01]} 3... Nf6 {[%clk 0:02:52.8]} 4. g3
{[%clk 0:03:01.3]} 4... Nc6 {[%clk 0:02:53]} 5. Bg2 {[%clk 0:03:01.9]} 5... Bc5
{[%clk 0:02:51.7]} 6. O-O {[%clk 0:03:01.7]} 6... O-O {[%clk 0:02:48.4]} 7. d3
{[%clk 0:03:01.4]} 7... a5 {[%clk 0:02:44.4]} 8. e4 {[%clk 0:03:01.1]} 8... dxe4
{[%clk 0:02:42]} 9. dxe4 {[%clk 0:02:56.8]} 9... Qxd1 {[%clk 0:02:34.5]} 10.
Rxd1 {[%clk 0:02:57.7]} 10... Nd4 {[%clk 0:02:27.5]} 11. Rd2 {[%clk 0:02:52.6]}
11... Be6 {[%clk 0:02:23.2]} 12. c3 {[%clk 0:02:53]} 12... Nc6 {[%clk
0:02:21.5]} 13. Kf1 {[%clk 0:02:52.8]} 13... Bc4+ {[%clk 0:02:19.8]} 14. Ke1
{[%clk 0:02:52.2]} 14... Rad8 {[%clk 0:02:00]} 15. b3 {[%clk 0:02:51.6]} 15...
Ba6 {[%clk 0:01:54.8]} 16. Rxd8 {[%clk 0:02:46.8]} 16... Rxd8 {[%clk 0:01:53.9]}
17. Bg5 {[%clk 0:02:32.3]} 17... Bxf2+ {[%clk 0:01:26.2]} 18. Kxf2 {[%clk
0:02:30.5]} 18... Rd1 {[%clk 0:01:26.8]} 19. Be3 {[%clk 0:02:12.5]} 19... Bd3
{[%clk 0:01:21.5]} 0-1

[Event "Late-Titled-Tuesday-Blitz-February-20-2024"]
[Site "Chess.com"]
[Date "2024.02.20"]
[Round "7"]
[White "ACollins05"]
[Black "K_A_S_T_O_R"]
[Result "0-1"]
[WhiteElo "2586"]
[BlackElo "2783"]
[TimeControl "180+1"]
[EndTime "15:13:30 PST"]
[Termination "K_A_S_T_O_R won by resignation"]

1. d4 {[%clk 0:03:00.9]} 1... Nf6 {[%clk 0:02:59.6]} 2. c4 {[%clk 0:02:59.1]}
2... e6 {[%clk 0:02:59.6]} 3. Nf3 {[%clk 0:02:58.4]} 3... Bb4+ {[%clk
0:02:57.2]} 4. Nbd2 {[%clk 0:02:57]} 4... O-O {[%clk 0:02:56.3]} 5. a3 {[%clk
0:02:55.6]} 5... Be7 {[%clk 0:02:56.8]} 6. e4 {[%clk 0:02:52.5]} 6... d6 {[%clk
0:02:56.4]} 7. Bd3 {[%clk 0:02:52.1]} 7... c5 {[%clk 0:02:56.5]} 8. O-O {[%clk
0:02:50.4]} 8... cxd4 {[%clk 0:02:56.2]} 9. Nxd4 {[%clk 0:02:51.3]} 9... a6
{[%clk 0:02:56.2]} 10. N2f3 {[%clk 0:02:46.6]} 10... Qc7 {[%clk 0:02:55.1]} 11.
h3 {[%clk 0:02:42.9]} 11... Nbd7 {[%clk 0:02:55.4]} 12. Be3 {[%clk 0:02:42.6]}
12... b6 {[%clk 0:02:55.6]} 13. Rc1 {[%clk 0:02:42.1]} 13... Bb7 {[%clk
0:02:56.2]} 14. Nd2 {[%clk 0:02:38.6]} 14... Nc5 {[%clk 0:02:55.7]} 15. Qc2
{[%clk 0:02:35.5]} 15... Nxd3 {[%clk 0:02:55.3]} 16. Qxd3 {[%clk 0:02:36.4]}
16... Rac8 {[%clk 0:02:55.5]} 17. b4 {[%clk 0:02:33.9]} 17... Rfd8 {[%clk
0:02:55.8]} 18. f3 {[%clk 0:02:33.6]} 18... Nd7 {[%clk 0:02:55.1]} 19. N2b3
{[%clk 0:02:31.5]} 19... Ne5 {[%clk 0:02:54]} 20. Qe2 {[%clk 0:02:28.1]} 20...
Nxc4 {[%clk 0:02:54.1]} 21. Nd2 {[%clk 0:02:25.7]} 21... d5 {[%clk 0:02:53.9]}
22. Nxc4 {[%clk 0:02:19.6]} 22... dxc4 {[%clk 0:02:53.6]} 23. Rfd1 {[%clk
0:02:14.7]} 23... b5 {[%clk 0:02:52.8]} 24. Qf2 {[%clk 0:02:13.3]} 24... Rd7
{[%clk 0:02:50.6]} 25. Re1 {[%clk 0:02:03.6]} 25... Bf6 {[%clk 0:02:46.3]} 26.
Nb3 {[%clk 0:02:01]} 26... Rd3 {[%clk 0:02:43.8]} 27. Nc5 {[%clk 0:01:59]} 27...
Rxa3 {[%clk 0:02:43.8]} 28. f4 {[%clk 0:01:55.8]} 28... Bc6 {[%clk 0:02:35.1]}
29. e5 {[%clk 0:01:55.2]} 29... Be7 {[%clk 0:02:35.4]} 30. f5 {[%clk 0:01:55.6]}
30... exf5 {[%clk 0:02:33.3]} 31. Qxf5 {[%clk 0:01:53.3]} 31... Bd5 {[%clk
0:02:33.3]} 32. Rcd1 {[%clk 0:01:42.9]} 32... Bxc5 {[%clk 0:02:31.3]} 33. Bxc5
{[%clk 0:01:43.8]} 33... Be6 {[%clk 0:02:31.6]} 34. Qg5 {[%clk 0:01:40.9]} 34...
h6 {[%clk 0:02:31.6]} 35. Qg3 {[%clk 0:01:39.8]} 35... a5 {[%clk 0:02:31.1]} 36.
Bd6 {[%clk 0:01:26.6]} 36... Rxg3 {[%clk 0:02:29.3]} 0-1

[Event "Late-Titled-Tuesday-Blitz-February-20-2024"]
[Site "Chess.com"]
[Date "2024.02.20"]
[Round "7"]
[White "aghasiyevkamal"]
[Black "Fluffey"]
[Result "1-0"]
[WhiteElo "2627"]
[BlackElo "2326"]
[TimeControl "180+1"]
[EndTime "15:13:56 PST"]
[Termination "aghasiyevkamal won by resignation"]

1. d4 {[%clk 0:02:59.8]} 1... Nf6 {[%clk 0:02:58.2]} 2. c4 {[%clk 0:02:59.3]}
2... b6 {[%clk 0:02:58.7]} 3. Nc3 {[%clk 0:02:53.4]} 3... Bb7 {[%clk 0:02:59.3]}
4. Bg5 {[%clk 0:02:42.1]} 4... Ne4 {[%clk 0:02:57.6]} 5. Nxe4 {[%clk 0:02:40.3]}
5... Bxe4 {[%clk 0:02:58.5]} 6. Nf3 {[%clk 0:02:38]} 6... g6 {[%clk 0:02:53.7]}
7. e3 {[%clk 0:02:35.5]} 7... Bg7 {[%clk 0:02:53.9]} 8. Bd3 {[%clk 0:02:35]}
8... Bxd3 {[%clk 0:02:53.6]} 9. Qxd3 {[%clk 0:02:34.8]} 9... c6 {[%clk
0:02:35.7]} 10. O-O {[%clk 0:02:33.5]} 10... O-O {[%clk 0:02:35.6]} 11. Rac1
{[%clk 0:02:32.9]} 11... Na6 {[%clk 0:02:28.5]} 12. a3 {[%clk 0:02:32.4]} 12...
Nc7 {[%clk 0:02:28.4]} 13. e4 {[%clk 0:02:25.6]} 13... d6 {[%clk 0:02:25.9]} 14.
b3 {[%clk 0:02:13]} 14... Qd7 {[%clk 0:02:25.5]} 15. d5 {[%clk 0:02:12.3]} 15...
c5 {[%clk 0:02:25.1]} 16. Qe3 {[%clk 0:02:09.7]} 16... e5 {[%clk 0:02:20.4]} 17.
dxe6 {[%clk 0:01:27.9]} 17... Nxe6 {[%clk 0:02:18.3]} 18. Bh6 {[%clk 0:01:26.4]}
18... b5 {[%clk 0:02:14.8]} 19. Bxg7 {[%clk 0:01:24.4]} 19... Kxg7 {[%clk
0:02:15.1]} 20. Rfd1 {[%clk 0:01:22.2]} 20... bxc4 {[%clk 0:02:13.6]} 21. Ne5
{[%clk 0:01:18.8]} 21... Qc6 {[%clk 0:02:12.2]} 22. Nxc6 {[%clk 0:01:17.1]}
22... cxb3 {[%clk 0:02:01.1]} 23. Rxd6 {[%clk 0:01:08.5]} 23... a5 {[%clk
0:01:57.1]} 24. Qxb3 {[%clk 0:01:07.5]} 24... Rfc8 {[%clk 0:01:55.5]} 25. Rxe6
{[%clk 0:01:07.3]} 25... fxe6 {[%clk 0:01:55.5]} 26. Qxe6 {[%clk 0:01:07.2]}
26... Rc7 {[%clk 0:01:55.7]} 27. Qe5+ {[%clk 0:01:06.9]} 1-0

[Event "Late-Titled-Tuesday-Blitz-February-20-2024"]
[Site "Chess.com"]
[Date "2024.02.20"]
[Round "7"]
[White "micke12a"]
[Black "Maestro1986"]
[Result "1-0"]
[WhiteElo "2371"]
[BlackElo "2497"]
[TimeControl "180+1"]
[EndTime "15:14:46 PST"]
[Termination "micke12a won by resignation"]

1. e4 {[%clk 0:02:55.3]} 1... c5 {[%clk 0:02:59.6]} 2. Nc3 {[%clk 0:02:54.2]}
2... g6 {[%clk 0:02:59.2]} 3. d4 {[%clk 0:02:54]} 3... cxd4 {[%clk 0:02:59.8]}
4. Qxd4 {[%clk 0:02:54.6]} 4... Nf6 {[%clk 0:03:00.1]} 5. Be3 {[%clk 0:02:54.3]}
5... Nc6 {[%clk 0:03:00.5]} 6. Qd2 {[%clk 0:02:54.3]} 6... Bg7 {[%clk
0:03:00.8]} 7. f3 {[%clk 0:02:54.8]} 7... O-O {[%clk 0:03:00.9]} 8. O-O-O {[%clk
0:02:55.5]} 8... d6 {[%clk 0:03:00.4]} 9. Nge2 {[%clk 0:02:56.1]} 9... Be6
{[%clk 0:03:00.8]} 10. Nf4 {[%clk 0:02:56.3]} 10... Bd7 {[%clk 0:02:55.3]} 11.
h4 {[%clk 0:02:53.1]} 11... h5 {[%clk 0:02:54.5]} 12. g4 {[%clk 0:02:52.6]}
12... Ne5 {[%clk 0:02:50.9]} 13. gxh5 {[%clk 0:02:47]} 13... gxh5 {[%clk
0:02:49.2]} 14. Qg2 {[%clk 0:02:37.9]} 14... Rc8 {[%clk 0:02:46]} 15. Rg1 {[%clk
0:02:33.5]} 15... Bg4 {[%clk 0:02:35.8]} 16. fxg4 {[%clk 0:02:29.3]} 16... hxg4
{[%clk 0:02:30.5]} 17. Bd4 {[%clk 0:02:19.1]} 17... Qa5 {[%clk 0:02:19.1]} 18.
Kb1 {[%clk 0:02:02]} 18... b5 {[%clk 0:01:52.7]} 19. Ncd5 {[%clk 0:01:59.7]}
19... Qa4 {[%clk 0:01:17.1]} 20. Nxe7+ {[%clk 0:01:41.3]} 20... Kh8 {[%clk
0:01:16.4]} 21. Nxc8 {[%clk 0:01:40.5]} 21... Rxc8 {[%clk 0:01:15.5]} 22. b3
{[%clk 0:01:31]} 22... Qa3 {[%clk 0:01:12.6]} 23. Bb2 {[%clk 0:01:23.8]} 23...
Qc5 {[%clk 0:01:08.3]} 24. Nd3 {[%clk 0:01:23.9]} 24... Nxd3 {[%clk 0:01:05.6]}
25. Bxd3 {[%clk 0:01:22.8]} 25... a5 {[%clk 0:01:02.6]} 26. Rdf1 {[%clk
0:01:19]} 1-0

[Event "Late-Titled-Tuesday-Blitz-February-20-2024"]
[Site "Chess.com"]
[Date "2024.02.20"]
[Round "7"]
[White "Iuckyducky"]
[Black "SouS007"]
[Result "0-1"]
[WhiteElo "2319"]
[BlackElo "2499"]
[TimeControl "180+1"]
[EndTime "15:14:49 PST"]
[Termination "SouS007 won by resignation"]

1. d4 {[%clk 0:02:56]} 1... Nf6 {[%clk 0:02:59.5]} 2. Nf3 {[%clk 0:02:55.7]}
2... d5 {[%clk 0:02:59.2]} 3. c4 {[%clk 0:02:55.9]} 3... e6 {[%clk 0:02:58.4]}
4. g3 {[%clk 0:02:56.3]} 4... Be7 {[%clk 0:02:57.2]} 5. Bg2 {[%clk 0:02:56.7]}
5... O-O {[%clk 0:02:57.4]} 6. O-O {[%clk 0:02:57]} 6... dxc4 {[%clk 0:02:57.8]}
7. Qc2 {[%clk 0:02:55.9]} 7... c6 {[%clk 0:02:58]} 8. a4 {[%clk 0:02:49.4]} 8...
b6 {[%clk 0:02:57.3]} 9. Nbd2 {[%clk 0:02:45.8]} 9... Bb7 {[%clk 0:02:55.6]} 10.
Nxc4 {[%clk 0:02:44.9]} 10... c5 {[%clk 0:02:51.1]} 11. Rd1 {[%clk 0:02:39.5]}
11... Be4 {[%clk 0:02:50.1]} 12. Qc3 {[%clk 0:02:36.7]} 12... Nc6 {[%clk
0:02:38.6]} 13. Be3 {[%clk 0:02:26.2]} 13... Nd5 {[%clk 0:02:36.8]} 14. Qb3
{[%clk 0:01:41.5]} 14... Ncb4 {[%clk 0:02:22.8]} 15. dxc5 {[%clk 0:01:33.5]}
15... Bc2 {[%clk 0:02:21.3]} 16. Qa3 {[%clk 0:01:33.4]} 16... Bxd1 {[%clk
0:02:21.1]} 17. Rxd1 {[%clk 0:01:33]} 17... Nc2 {[%clk 0:02:21.2]} 18. Qb3
{[%clk 0:01:27.6]} 18... Ncxe3 {[%clk 0:02:20.9]} 19. Nxe3 {[%clk 0:01:26.4]}
19... Bxc5 {[%clk 0:02:14.7]} 20. Nxd5 {[%clk 0:01:23.8]} 20... exd5 {[%clk
0:02:15.6]} 21. Rxd5 {[%clk 0:01:24.1]} 21... Qe7 {[%clk 0:02:15]} 22. Re5
{[%clk 0:00:39.1]} 22... Qf6 {[%clk 0:02:12.4]} 23. e3 {[%clk 0:00:31.7]} 23...
Rad8 {[%clk 0:02:11.8]} 24. h4 {[%clk 0:00:24.7]} 24... h6 {[%clk 0:02:10.3]}
25. Kh2 {[%clk 0:00:24.6]} 25... Rfe8 {[%clk 0:02:09.4]} 26. Rxe8+ {[%clk
0:00:21.3]} 26... Rxe8 {[%clk 0:02:10.3]} 27. Qb5 {[%clk 0:00:17.5]} 27... Rd8
{[%clk 0:02:05.9]} 28. b4 {[%clk 0:00:17.8]} 28... Bd6 {[%clk 0:02:06.1]} 29.
Qc6 {[%clk 0:00:15.7]} 29... Bxg3+ {[%clk 0:02:04.8]} 30. fxg3 {[%clk
0:00:09.4]} 30... Qxc6 {[%clk 0:02:05.7]} 0-1

[Event "Late-Titled-Tuesday-Blitz-February-20-2024"]
[Site "Chess.com"]
[Date "2024.02.20"]
[Round "7"]
[White "slavenok"]
[Black "WilsonPalencia21"]
[Result "1-0"]
[WhiteElo "2756"]
[BlackElo "2544"]
[TimeControl "180+1"]
[EndTime "15:14:53 PST"]
[Termination "slavenok won on time"]

1. e4 {[%clk 0:02:57.3]} 1... c5 {[%clk 0:02:59.5]} 2. d4 {[%clk 0:02:56.9]}
2... cxd4 {[%clk 0:02:59.7]} 3. Nf3 {[%clk 0:02:57]} 3... d6 {[%clk 0:02:59.7]}
4. Bc4 {[%clk 0:02:56.4]} 4... Nf6 {[%clk 0:02:51.4]} 5. Qe2 {[%clk 0:02:56]}
5... Nc6 {[%clk 0:02:49.4]} 6. h3 {[%clk 0:02:56]} 6... e6 {[%clk 0:02:46.5]} 7.
O-O {[%clk 0:02:55.9]} 7... Be7 {[%clk 0:02:46.1]} 8. Rd1 {[%clk 0:02:56.3]}
8... Qb6 {[%clk 0:02:46]} 9. c3 {[%clk 0:02:56.6]} 9... dxc3 {[%clk 0:02:41.8]}
10. Nxc3 {[%clk 0:02:57.5]} 10... O-O {[%clk 0:02:41.7]} 11. Be3 {[%clk
0:02:58]} 11... Qa5 {[%clk 0:02:40.5]} 12. Nb5 {[%clk 0:02:58.5]} 12... Nxe4
{[%clk 0:02:36.8]} 13. Bf4 {[%clk 0:02:47.3]} 13... d5 {[%clk 0:02:35]} 14. Bd3
{[%clk 0:02:44.8]} 14... Nc5 {[%clk 0:02:18.9]} 15. Bc2 {[%clk 0:02:28.4]} 15...
Qb4 {[%clk 0:02:00.1]} 16. Be3 {[%clk 0:02:21.5]} 16... Ne4 {[%clk 0:01:49.7]}
17. a3 {[%clk 0:02:18.2]} 17... Qxb2 {[%clk 0:01:47.9]} 18. Nfd4 {[%clk
0:02:13.7]} 18... a6 {[%clk 0:01:29.2]} 19. Rab1 {[%clk 0:02:12.6]} 19... Qa2
{[%clk 0:01:20.3]} 20. Nxc6 {[%clk 0:02:06.1]} 20... bxc6 {[%clk 0:01:20]} 21.
Nc7 {[%clk 0:02:04.9]} 21... Bd7 {[%clk 0:01:11.4]} 22. Nxa8 {[%clk 0:02:01.7]}
22... Rxa8 {[%clk 0:01:09.4]} 23. Rb7 {[%clk 0:01:57.6]} 23... Nf6 {[%clk
0:00:50.1]} 24. Bxh7+ {[%clk 0:01:54.6]} 1-0